Workbook

Sheet Návrh rozpočtu na rok 2022
A1: Rozpočet Obce Prosečné na rok 2023
A2: dle tříd v závazných ukazatelích (§)
A3: PŘÍJMY
A4: Třída 1 | C4: Daňové příjmy | G4: Schv.rozpočet | H4: Předpokl. plnění | I4: Skutečnost | J4: Návrh rozpočtu
A5: dle § | B5: pol. | G5: 2022 | H5: 2022 | I5: k 31.10.2022 | J5: 2023
B6: 1111 | C6: Daň z příjmů FO ze závislé činnosti | G6: 1400000 | H6: 1400000 | I6: 1198949.01 | J6: 1700000
B7: 1112 | C7: Daň z podnikání | G7: 70000 | H7: 112000 | I7: 99881.9 | J7: 106000
B8: 1113 | C8: Daň z příjmů FO vybíraná srážkou | G8: 240000 | H8: 288000 | I8: 246325.51 | J8: 340000
B9: 1121 | C9: Daň z příjmů právnických osob | G9: 1900000 | H9: 2053000 | I9: 1882162.49 | J9: 2400000
B10: 1122 | C10: Daň z příjmu právnických osob za obec | G10: 0 | H10: 149340 | I10: 149340 | J10: 0
B11: 1211 | C11: Daň z přidané hodnoty | G11: 4000000 | H11: 5150000 | I11: 4194059.01 | J11: 5500000
B12: 1334 | C12: Odvody za odnětí půdy ze ZPF | G12: 0 | H12: 6605 | I12: 6601.48 | J12: 0
B13: 1335 | C13: Popl. za odnětí pozemků plnění funkci lesa | G13: 0 | H13: 45 | I13: 43.2 | J13: 0
B14: 1341 | C14: Poplatek ze psů | G14: 8000 | H14: 8000 | I14: 6625 | J14: 8000
B15: 1342 | C15: Poplatky z pobytu | G15: 20000 | H15: 20000 | I15: 15460 | J15: 30000
B16: 1345 | C16: Poplatky za obecní systém odpad. hospodaření | G16: 200000 | H16: 178000 | I16: 102142 | J16: 200000
B17: 1349 | C17: Příjem ze zrušených poplatků | G17: 0 | H17: 29670 | I17: 29670 | J17: 0
B18: 1361 | C18: Správní poplatky | G18: 6000 | H18: 5000 | I18: 3830 | J18: 6000
B19: 1381 | C19: Daň z hazardních her | G19: 70000 | H19: 80000 | I19: 56476.45 | J19: 80000
B20: 1511 | C20: Daň z nemovitých věcí | G20: 300000 | H20: 300000 | I20: 287230.57 | J20: 300000
A21: Třída 1 | C21: Celkem daňové příjmy | G21: =SUM(G6:G20) -> 8214000 | H21: =SUM(H6:H20) -> 9779660 | I21: =SUM(I6:I20) -> 8278796.62 | J21: =SUM(J6:J20) -> 10670000
A23: Třída 2 | C23: Nedaňové příjmy | G23: Schv.rozpočet | H23: Předpokl. plnění | I23: Skutečnost | J23: Návrh rozpočtu
A25: 2310 | C25: Pitná voda | G25: 45000 | H25: 45000 | I25: 0 | J25: 45000
A26: 2411 | C26: Záležitosti pošt | G26: 130000 | H26: 125000 | I26: 102259.19 | J26: 130000
A27: 3314 | C27: Knihovnické činnosti | G27: 0 | H27: 2945 | I27: 2941.91 | J27: 0
A28: 3322 | C28: Zachování a obnova kulturních památek | G28: 0 | H28: 90 | I28: 85.17 | J28: 0
A29: 3349 | C29: Ostatní záležitosti sdělovacích prostředků | G29: 1000 | H29: 0 | J29: 1000
A30: 3392 | C30: Zájmová činnost v kultuře | G30: 20000 | H30: 2160 | I30: 2156.73 | J30: 40000
A31: 3399 | C31: Ostatní záležitosti kultury | G31: 1000 | H31: 0 | I31: 0 | J31: 1000
A32: 3612 | C32: Bytové hospodářství | G32: 373500 | H32: 350000 | I32: 289409 | J32: 374500
A33: 3613 | C33: Nebytové hospodářství | G33: 18000 | H33: 19000 | I33: 17730.87 | J33: 18000
A34: 3631 | C34: Veřejné osvětlení | H34: 43935 | I34: 43934.79 | J34: 0
A35: 3632 | C35: Pohřebnictví | G35: 3000 | H35: 3000 | I35: 484 | J35: 3000
A36: 3639 | C36: Komunální služby a územní rozvoj | G36: 8500 | H36: 16500 | I36: 9465 | J36: 43500
A37: 3722 | C37: Sběr a svoz komunálních odpadů | G37: 7000 | H37: 5500 | I37: 3954 | J37: 7000
A38: 3900 | C38: Ostatní činnosti související se službami obyvatelstvu | G38: 5000 | H38: 150 | I38: 150 | J38: 1000
A39: 3725 | C39: Využívání a zneškodňování komunálních odpadů | G39: 140000 | H39: 135000 | I39: 93860 | J39: 140000
A40: 5512 | C40: Požární ochrana | G40: 10000 | H40: 3145 | I40: 3141.91 | J40: 10000
A41: 6171 | C41: Činnost místní správy | G41: 0 | H41: 6981 | I41: 6980.97 | J41: 0
A42: 6310 | C42: Obecné přímy a výdaje z finan. Operací | G42: 15000 | H42: 15000 | I42: 11681.67 | J42: 15000
A43: 6330 | C43: Převody z rozpočtových účtů | G43: 215000 | H43: 215000 | I43: 0 | J43: 217000
A44: Třída 2 | C44: Celkem nedaňové příjmy | G44: =SUM(G25:G43) -> 992000 | H44: =SUM(H25:H43) -> 988406 | I44: =SUM(I25:I43) -> 588235.21 | J44: =SUM(J25:J43) -> 1046000
A46: Třída 3 | C46: Kapitálové příjmy | G46: Schv.rozpočet | H46: Předpokl. plnění | I46: Skutečnost | J46: Návrh rozpočtu
A47: dle § | G47: 2022 | H47: 2022 | I47: k 31.10.2022 | J47: 2023
A48: Třída 3 | C48: Celkem kapitálové příjmy | G48: 0 | H48: 0 | I48: 0 | J48: 0
A50: Třída 4 | C50: Přijaté dotace | G50: Schv.rozpočet | H50: Předpokl. plnění | I50: Skutečnost | J50: Návrh rozpočtu
A51: dle § | B51: pol. | G51: 2022 | H51: 2022 | I51: k 31.10.2022 | J51: 2023
B52: 4111 | C52: Dotace neinv.státní rozpočet volby | G52: 0 | H52: 66283 | I52: 66282.5 | J52: 0
B53: 4112 | C53: Dotace neinv. státní rozpočet | G53: 139200 | H53: 139200 | I53: 116000 | J53: 146200
B54: 4116 | C54: Ostatní neinv. příjmy ze SR | H54: 382642 | I54: 382641 | J54: 0
A55: Třída 4 | C55: Celkem přijaté dotace | G55: =SUM(G52:G54) -> 139200 | H55: =SUM(H52:H54) -> 588125 | I55: =SUM(I52:I54) -> 564923.5 | J55: 142600
A58: CELKEM PŘÍJMY | G58: =SUM(G21,G44,G48,G55) -> 9345200 | H58: =SUM(H21,H44,H48,H55) -> 11356191 | I58: =SUM(I21,I44,I48,I55) -> 9431955.33 | J58: =SUM(J21,J44,J48,J55) -> 11858600
A60: VÝDAJE
A61: Třída 5 | C61: Běžné výdaje | G61: Schv.rozpočet | H61: Předpokl. plnění | I61: Skutečnost | J61: Návrh rozpočtu
A62: dle § | G62: 2022 | H62: 2022 | I62: k 31.10.2022 | J62: 2023
A63: 2143 | C63: Cestovní ruch | G63: 7500 | H63: 7410 | I63: 7410 | J63: 7500
A64: 2212 | C64: Komunikace | G64: 330000 | H64: 3262000 | I64: 2484839.06 | J64: 430000
A65: 2292 | C65: Dopravní obslužnost veřejnými službami | G65: 39000 | H65: 38380 | I65: 38376 | J65: 39000
A66: 2310 | C66: Pitná voda | G66: 45000 | H66: 45000 | I66: 0 | J66: 47000
A67: 2321 | C67: Odvádění a čistění odopadních vod | G67: 500000 | H67: 267305 | I67: 187302 | J67: 500000
A68: 3111 | C68: Mateřské školy | G68: 215000 | H68: 602645 | I68: 594275 | J68: 275000
A69: 3314 | C69: Činnosti knihovnické | G69: 50500 | H69: 34500 | I69: 28979 | J69: 68500
A70: 3319 | C70: Ostatní záležitosti kultury | G70: 20000 | H70: 17000 | I70: 12000 | J70: 35000
A71: 3322 | C71: Zachování a obnova kulturních památek | G71: 26000 | H71: 26000 | I71: 14452 | J71: 38000
A72: 3341 | C72: Rozhlas a televize | G72: 5000 | H72: 0 | I72: 0 | J72: 5000
A73: 3349 | C73: Ostatní záležitosti sdělovacích prostředků | G73: 25000 | H73: 20000 | I73: 12401 | J73: 25000
A74: 3392 | C74: Zájmová činnost v kultuře | G74: 216000 | H74: 120000 | I74: 85230.92 | J74: 282000
A75: 3399 | C75: Ostatní záležitosti kultury | G75: 100000 | H75: 80000 | I75: 54355 | J75: 150000
A76: 3419 | C76: Ostatní sportovní činnost | G76: 30000 | H76: 41460 | I76: 30000 | J76: 30000
A77: 3429 | C77: Ostatní zájmová činnost a rekreace | G77: 20000 | H77: 0 | I77: 0 | J77: 20000
A78: 3525 | C78: Hospice | G78: 5000 | H78: 0 | I78: 0 | J78: 5000
A79: 3612 | C79: Bytové hospodářství | G79: 96000 | H79: 86000 | I79: 66448 | J79: 145000
A80: 3613 | C80: Nebytové hospodářství | G80: 235000 | H80: 250000 | I80: 184605.43 | J80: 460000
A81: 3631 | C81: Veřejné osvětlení | G81: 250000 | H81: 350000 | I81: 339885 | J81: 540000
A82: 3632 | C82: Pohřebnictví | G82: 80000 | H82: 40000 | I82: 35859 | J82: 110000
A83: 3639 | C83: Komunální služby a územní rozvoj | G83: 90570 | H83: 166480 | I83: 115449 | J83: 190100
A84: 3722 | C84: Sběr a svoz komunálních odpadů | G84: 558000 | H84: 505000 | I84: 415262.81 | J84: 608000
A85: 3723 | C85: Sběr a svoz ostatních odpadů | G85: 30000 | H85: 34805 | I85: 11663 | J85: 30000
A86: 3725 | C86: Využívání a zneškodňování komunálních odpadů | G86: 0 | H86: 119065 | I86: 119064 | J86: 0
A87: 3745 | C87: Péče o vzhled obcí a veřejnou zeleň | G87: 40000 | H87: 0 | I87: 0 | J87: 40000
A88: 3900 | C88: Ostatní činnosti souv. se službami pro obyv. | G88: 30000 | H88: 52000 | I88: 52000 | J88: 30000
A89: 4351 | C89: Ostatní asist.pečovateslké služby | H89: 30000 | I89: 23317 | J89: 50000
A90: 4359 | C90: Ostatní služby v oblasti soc. péče | G90: 12000 | H90: 5000 | I90: 5000 | J90: 12000
A91: 4379 | C91: Ostatní služby v oblasti soc. prevence | G91: 2000 | H91: 7000 | I91: 7000 | J91: 7000
A92: 5213 | C92: Krizová opatření | G92: 50000 | H92: 0 | I92: 0 | J92: 50000
A93: 5512 | C93: Požární ochrana | G93: 126000 | H93: 110000 | I93: 87512.4 | J93: 180000
A94: 6112 | C94: Zastupitelstvo obce | G94: 865000 | H94: 1080000 | I94: 705993 | J94: 945000
A95: 6115 | C95: Volby do zastupitelstev obcí | G95: 0 | H95: 31000 | I95: 20300 | J95: 0
A96: 6171 | C96: Činnost místní správy | G96: 1622700 | H96: 1500000 | I96: 1262750.2 | J96: 2437500
A97: 6310 | C97: Obecné výdaje z finančních operací | G97: 10000 | H97: 3000 | I97: 2533.4 | J97: 10000
A98: 6320 | C98: Pojištění funkčně nespecifikované | G98: 21200 | H98: 21200 | I98: 21199 | J98: 21200
A99: 6330 | C99: Převody vlastním fondům | G99: 215000 | H99: 215000 | I99: 0 | J99: 217000
A100: 6399 | C100: Ostatní finanční operace | G100: 0 | H100: 149340 | I100: 149340 | J100: 0
A101: 6402 | C101: Finanční vypořádání minulých let | G101: 7000 | H101: 7425 | I101: 7423 | J101: 21400
A102: 6409 | C102: Ostatní činnosti jinde nezařazené | G102: 2255030 | H102: 0 | I102: 0 | J102: 2681700
A103: Třída 5 | C103: Celkem běžné výdaje | G103: =SUM(G63:G102) -> 8229500 | H103: =SUM(H63:H102) -> 9324015 | I103: =SUM(I63:I102) -> 7182224.22 | J103: =SUM(J63:J102) -> 10742900
A105: Třída 6 | C105: Kapitálové výdaje | G105: Schv.rozpočet | H105: Předpokl. plnění | I105: Skutečnost | J105: Návrh rozpočtu
A106: dle § | G106: 2022 | H106: 2022 | I106: k 31.10.2022 | J106: 2023
A108: 2212 | C108: Komunikace | G108: 726700 | H108: 0 | I108: 0 | J108: 726700
H109: 0 | I109: 0 | J109: 0
G110: 0 | H110: 0 | I110: 0 | J110: 0
A111: Třída 6 | C111: Celkem kapitálové výdaje | G111: =SUM(G108:G108) -> 726700 | H111: 0 | I111: 0 | J111: =SUM(J108:J108) -> 726700
A113: CELKEM VÝDAJE | G113: =SUM(G103,G111) -> 8956200 | H113: =SUM(H103,H111) -> 9324015 | I113: =SUM(I103,I111) -> 7182224.22 | J113: =SUM(J103,J111) -> 11469600
A115: FINANCOVÁNÍ
A116: Třída 8 | C116: Financování | G116: Schv.rozpočet | H116: Předpokl. plnění | I116: Skutečnost | J116: Návrh rozpočtu
A117: dle § | B117: pol. | G117: 2022 | H117: 2022 | I117: k 31.10.2022 | J117: 2023
B118: 8115 | C118: Změna stavu na ban. účtech | G118: 0 | H118: 2500000 | I118: 1936665 | J118: 0
B119: 8124 | C119: Splátka úvěru | G119: 389000 | H119: 389000 | I119: 324080 | J119: 389000
A120: Třída 8 | C120: Celkem financování | G120: =SUM(G118:G119) -> 389000 | H120: =SUM(H118:H119) -> 2889000 | I120: =SUM(I118:I119) -> 2260745 | J120: =SUM(J118:J119) -> 389000
A121: Rozpočet obce na rok 2023 je přebytkový. Závazným ukazatelem jsou paragrafy rozpočtu.

Sheet Příloha č. 1 (hidden)
A1: Příloha č. 1 k návrhu rozpočtu na rok 2021
A2: Rozpis transferů
A3: Krkonoše - Svazek měst a obcí | D3: 7500
A4: Svazek obcí Horní Labe | D4: 10000
A6: CELKEM | E6: 17500
A8: Rozpis příspěvků a finančních darů
A9: Neinvestiční příspěvek PO MŠ Prosečné | E9: 180000
A10: Finanční dar Klub důchodců Lánov | E10: 30000
A11: Finanční dar TJ Sokol Prosečné | E11: 30000
A12: Hospice - finanční dary | E12: 5000
A13: Služby a činnosti v oblasti soc. prevence - fin. dary | E13: 2000
A14: Služby a činnosti v oblasti soc. péče - fin. dary | E14: 12000
A15: CELKEM | D15: 249000
